bitfinex/quotes_BTCUSD_20250802
["timestamp","ask_amount","ask_price","bid_price","bid_amount"]
[1754155401121,0.55167139,113540.0,113530.0,0.16256]
[1754155401356,0.05167139,113540.0,113530.0,0.16256]
[1754155403933,0.55167139,113540.0,113530.0,0.16256]
[1754155404196,0.05167139,113540.0,113530.0,0.0278]
[1754155405266,0.05992977,113540.0,113530.0,0.0278]
[1754155405823,0.04613959,113540.0,113530.0,0.0278]
[1754155406072,0.54305959,113540.0,113530.0,0.0278]
[1754155406261,0.53480121,113540.0,113530.0,0.35421407]
[1754155406680,0.54306283,113540.0,113530.0,0.35421407]
[1754155407459,0.54306283,113540.0,113530.0,0.0238]
[1754155407965,0.53480121,113540.0,113530.0,0.0238]
[1754155408193,0.54308144,113540.0,113530.0,0.0238]
[1754155408657,0.6916316,113540.0,113530.0,0.0238]
[1754155409548,0.0547416,113540.0,113530.0,0.39283041]
[1754155409754,0.04647678,113540.0,113530.0,0.43744396]
[1754155410242,0.04445011,113570.0,113530.0,0.43744396]
[1754155410461,0.026483,113560.0,113550.0,0.32641407]
[1754155410689,0.03475024,113560.0,113550.0,0.69172814]
[1754155410902,0.03475024,113560.0,113550.0,0.77592803]
[1754155411387,0.02303801,113570.0,113550.0,0.77592803]
[1754155411638,0.03130001,113570.0,113560.0,0.46117407]
[1754155411847,0.03130001,113570.0,113560.0,0.49907407]
[1754155413833,0.01751211,113570.0,113560.0,0.49907407]
[1754155415829,0.01948211,113570.0,113560.0,0.17063]
[1754155416047,0.05468211,113570.0,113560.0,0.16848]
[1754155416269,0.05468211,113570.0,113550.0,0.32641407]
[1754155416487,0.07118705,113570.0,113560.0,0.13476]
[1754155416699,0.07118735,113570.0,113560.0,0.13476]
[1754155417130,0.57118735,113570.0,113550.0,0.03372]
[1754155417347,0.05468211,113570.0,113560.0,0.03372]
[1754155417815,0.55468211,113570.0,113560.0,0.03372]
[1754155418031,0.57118608,113570.0,113560.0,0.03372]
[1754155418171,0.56846902,113570.0,113560.0,0.03372]
[1754155419496,0.56845813,113570.0,113560.0,0.03372]
[1754155420011,0.09493913,113570.0,113560.0,0.02872]
[1754155421258,0.08993913,113570.0,113560.0,0.02872]
[1754155422230,0.09612708,113570.0,113560.0,0.02872]
[1754155425022,0.08787619,113570.0,113560.0,0.02872]
[1754155425516,0.08787635,113570.0,113560.0,0.02872]
[1754155426548,0.08787685,113570.0,113560.0,0.02872]
[1754155427007,0.08168802,113570.0,113560.0,0.02872]
[1754155428062,0.08168802,113570.0,113560.0,0.02372]
[1754155428664,0.08787735,113570.0,113560.0,0.02372]
[1754155428889,0.08168802,113570.0,113560.0,0.02372]
[1754155429258,0.08787763,113570.0,113560.0,0.02372]
[1754155429667,0.08787763,113570.0,113560.0,0.01972]
[1754155431385,0.58787763,113570.0,113560.0,0.01972]
[1754155431601,0.08787763,113570.0,113560.0,0.01972]
[1754155433028,0.42168802,113570.0,113560.0,0.01972]
[1754155434454,0.42168802,113570.0,113550.0,0.46416407]
[1754155434666,0.50588791,113570.0,113550.0,0.49788407]
[1754155435304,1.00588791,113570.0,113550.0,0.49788407]
[1754155440330,1.00588791,113570.0,113550.0,0.17147]
[1754155440536,1.00588791,113570.0,113550.0,0.49485407]
[1754155441580,0.03507,113560.0,113550.0,0.16844]
[1754155441763,0.03703,113560.0,113550.0,0.16844]
[1754155442212,0.03703,113560.0,113550.0,0.03567]
[1754155442426,0.03703,113560.0,113550.0,0.13472]
[1754155442638,0.063513,113560.0,113550.0,0.13472]
[1754155442849,0.063513,113560.0,113550.0,0.13572]
[1754155443055,0.403513,113560.0,113550.0,0.13572]
[1754155443271,4.71560907,113560.0,113550.0,0.001]
[1754155443503,4.85032907,113560.0,113550.0,0.001]
[1754155443709,4.85652868,113560.0,113550.0,0.003]
[1754155443912,4.94072857,113560.0,113550.0,0.001]
[1754155444124,0.34,113550.0,113540.0,0.13472]
[1754155444374,0.37703,113550.0,113530.0,0.16852834]
[1754155444592,0.34196,113550.0,113540.0,0.36165407]
[1754155444798,0.35378876,113550.0,113540.0,0.36488407]
[1754155445026,0.35378876,113550.0,113540.0,0.03847]
[1754155445235,0.35378876,113550.0,113540.0,0.03024]
[1754155445457,0.35378876,113550.0,113540.0,0.03319]
[1754155446105,0.35681876,113550.0,113540.0,0.03319]
[1754155446335,0.35681876,113550.0,113540.0,0.03519]
[1754155446550,0.34303,113550.0,113540.0,0.03519]
[1754155446769,0.34499,113550.0,113540.0,0.03519]
[1754155448498,0.3988133,113550.0,113540.0,0.03519]
[1754155448718,0.4308533,113550.0,113540.0,0.03519]
[1754155449534,0.44464199,113550.0,113540.0,0.03519]
[1754155449968,0.39081869,113550.0,113540.0,0.03519]
[1754155450195,0.35774823,113550.0,113540.0,0.03519]
[1754155450403,0.35774823,113550.0,113540.0,0.36160407]
[1754155452356,0.38978823,113550.0,113540.0,0.35660407]
[1754155452770,0.41627323,113550.0,113540.0,0.35660407]
[1754155453426,0.41383323,113550.0,113540.0,0.35660407]
[1754155454680,0.46868855,113550.0,113540.0,0.35660407]
[1754155455108,0.46868855,113550.0,113540.0,0.03019]
[1754155455312,0.46868855,113550.0,113540.0,0.02824]
[1754155457336,0.46868855,113550.0,113540.0,0.02524]
[1754155458514,0.45489986,113550.0,113540.0,0.02524]
[1754155460023,0.45489986,113550.0,113530.0,0.5791423]
[1754155460316,0.40004454,113550.0,113530.0,0.25272823]
[1754155460523,0.03507,113540.0,113530.0,0.5791423]
[1754155460724,0.03703,113540.0,113530.0,0.5791423]
[1754155461140,0.03703,113540.0,113530.0,0.25272823]
[1754155461358,0.05081931,113540.0,113530.0,0.00051834]
[1754155461570,0.05081931,113540.0,113530.0,0.13523834]
[1754155462207,0.71723338,113540.0,113530.0,0.13523834]
[1754155462428,0.71723338,113540.0,113530.0,0.00051834]
[1754155462643,0.71723338,113540.0,113530.0,0.13723834]
[1754155462852,4.68912607,113540.0,113530.0,0.13723834]
[1754155463065,4.82384607,113540.0,113530.0,0.00251834]
[1754155463270,4.82384607,113540.0,113530.0,0.00351834]
[1754155463709,4.90804596,113540.0,113530.0,0.00351834]
[1754155463923,4.90804596,113540.0,113530.0,0.00251834]
[1754155464141,4.82384607,113540.0,113530.0,0.00251834]
[1754155464366,4.325682,113530.0,113500.0,0.24344834]
[1754155464594,0.00196,113510.0,113500.0,0.17010329]
[1754155464803,0.00196,113510.0,113500.0,0.17230593]
[1754155465458,0.06638417,113510.0,113500.0,0.17010329]
[1754155465670,0.03666,113510.0,113500.0,0.49651736]
[1754155465883,0.09398281,113510.0,113500.0,0.49951736]
[1754155466091,0.09398281,113510.0,113500.0,0.17310329]
[1754155466321,0.09398281,113510.0,113500.0,0.17210329]
[1754155466540,0.09398281,113510.0,113500.0,0.13690329]
[1754155466779,0.09398281,113510.0,113500.0,0.13790329]
[1754155467205,0.09398281,113510.0,113500.0,0.13690329]
[1754155468941,0.09398281,113510.0,113500.0,0.16989329]
[1754155469830,0.09398281,113510.0,113500.0,0.16789329]
[1754155471106,0.09498281,113510.0,113500.0,0.16789329]
[1754155482731,0.09498281,113510.0,113500.0,0.13490329]
[1754155483354,0.09498281,113510.0,113500.0,0.16789329]
[1754155484955,0.09498281,113510.0,113500.0,0.16998329]
[1754155485158,0.06338281,113510.0,113500.0,0.49639736]
[1754155485358,0.06028281,113510.0,113500.0,0.49639736]
[1754155489942,0.06338281,113510.0,113500.0,0.49639736]
[1754155490553,0.09498281,113510.0,113500.0,0.49639736]
[1754155490933,0.10877618,113510.0,113500.0,0.49639736]
[1754155491147,0.10877618,113510.0,113500.0,0.16998329]
[1754155491557,0.10877618,113510.0,113500.0,0.00018329]
[1754155491784,0.10877618,113510.0,113500.0,0.13494329]
[1754155492376,0.10877618,113510.0,113500.0,0.00018329]
[1754155492579,0.10877618,113510.0,113500.0,0.13494329]
[1754155493755,0.10877618,113510.0,113500.0,0.16793329]
[1754155494106,0.10877618,113510.0,113500.0,0.17002329]
[1754155498851,0.10877618,113510.0,113500.0,0.49679722]
[1754155501690,0.04562318,113510.0,113500.0,0.82357115]
[1754155501942,0.04562318,113510.0,113500.0,0.49679722]
[1754155502198,0.01479337,113510.0,113500.0,0.91081104]
[1754155502855,0.01479337,113510.0,113500.0,0.58393859]
[1754155503056,0.01379337,113510.0,113500.0,0.58393859]
[1754155503301,0.37015587,113520.0,113500.0,0.58493859]
[1754155503485,0.37015587,113520.0,113510.0,0.32667541]
[1754155503686,0.37015587,113520.0,113510.0,0.36046541]
[1754155504553,0.37015587,113520.0,113510.0,0.36350541]
[1754155505191,0.37115587,113520.0,113510.0,0.36350541]
[1754155506240,0.38494812,113520.0,113510.0,0.36046541]
[1754155514738,0.37115587,113520.0,113510.0,0.36046541]
[1754155515790,0.37115587,113520.0,113510.0,0.03379]
[1754155515998,0.37629587,113520.0,113510.0,0.03379]
[1754155516213,0.40910587,113520.0,113510.0,0.36046541]
[1754155516419,0.37115587,113520.0,113510.0,0.36046541]
[1754155517101,0.87115587,113520.0,113510.0,0.36046541]
[1754155517314,0.501,113520.0,113510.0,0.4477053]
[1754155517526,0.501,113520.0,113510.0,0.77438071]
[1754155517746,0.51479127,113520.0,113510.0,0.4477053]
[1754155518189,0.51379127,113520.0,113510.0,0.4477053]
[1754155518607,0.51479127,113520.0,113510.0,0.4477053]
[1754155518819,0.51379127,113520.0,113510.0,0.4477053]
[1754155519247,0.51379127,113520.0,113510.0,0.4487053]
[1754155519456,0.51275127,113520.0,113510.0,0.4487053]
[1754155520273,0.51275127,113520.0,113510.0,0.4497053]
[1754155523743,0.51275127,113520.0,113510.0,0.4466653]
[1754155523948,0.51275127,113520.0,113510.0,0.25470989]
[1754155524147,0.51275127,113520.0,113510.0,0.5813853]
[1754155524323,0.51582127,113520.0,113510.0,0.4466653]
[1754155524557,0.51789127,113520.0,113510.0,0.5813853]
[1754155525569,0.54779127,113520.0,113510.0,0.5813853]
[1754155526589,0.51789127,113520.0,113510.0,0.5813853]
[1754155526847,0.51275127,113520.0,113510.0,0.5813853]
[1754155528356,0.31973717,113520.0,113510.0,0.5813853]
[1754155530114,0.32180717,113520.0,113510.0,0.5813853]
[1754155530326,0.35474717,113520.0,113510.0,0.5813853]
[1754155530950,0.35474717,113520.0,113510.0,0.58136278]
[1754155530951,0.3409559,113520.0,113510.0,0.58136278]
[1754155531158,0.3110559,113520.0,113510.0,0.58136278]
[1754155532004,0.3409559,113520.0,113510.0,0.58136278]
[1754155532415,0.35474731,113520.0,113510.0,0.58136278]
[1754155532824,0.32484731,113520.0,113510.0,0.58136278]
[1754155533074,0.32484731,113520.0,113510.0,0.25470989]
[1754155533275,0.32484731,113520.0,113510.0,0.58136278]
[1754155533685,0.35474731,113520.0,113510.0,0.58136278]
[1754155534340,0.35474731,113520.0,113510.0,0.25470989]
[1754155534758,0.35474731,113520.0,113510.0,0.58136278]
[1754155536856,0.35474731,113520.0,113510.0,0.25470989]
[1754155537070,0.35474731,113520.0,113510.0,0.58136278]
[1754155537505,0.35474731,113520.0,113510.0,0.22091989]
[1754155537713,0.35474731,113520.0,113510.0,0.54757278]
[1754155540445,0.35474731,113520.0,113510.0,0.46337289]
[1754155544992,0.35474731,113520.0,113510.0,0.16769]
[1754155545238,0.35474731,113520.0,113510.0,0.49434289]
[1754155548333,0.35474731,113520.0,113510.0,0.46337289]
[1754155548956,0.35474731,113520.0,113510.0,0.16769]
[1754155549163,0.35474731,113520.0,113510.0,0.49434289]
[1754155549367,0.35474731,113520.0,113510.0,0.16769]
[1754155549596,0.35474731,113520.0,113510.0,0.49434289]
[1754155550867,0.31973731,113520.0,113510.0,0.91040567]
[1754155551973,0.31973731,113520.0,113510.0,1.25450758]
[1754155552693,0.31973731,113520.0,113510.0,1.29058976]
[1754155552920,0.31973731,113520.0,113510.0,0.96261423]
[1754155553348,0.31973731,113520.0,113510.0,0.96461423]
[1754155553791,0.31973731,113520.0,113510.0,0.96161423]
[1754155554207,0.31973731,113520.0,113510.0,0.96861423]
[1754155554422,0.31973731,113520.0,113510.0,0.96561423]
[1754155554897,0.3059459,113520.0,113510.0,0.97061423]
[1754155555555,0.3059459,113520.0,113510.0,1.24031423]
[1754155559199,0.3197357,113520.0,113510.0,1.24031423]
[1754155562898,0.3551257,113520.0,113510.0,0.51506891]
[1754155563124,0.3551257,113520.0,113510.0,0.84156048]
[1754155563496,0.3551257,113520.0,113510.0,0.83656048]
[1754155563714,0.3551257,113520.0,113510.0,0.83256048]
[1754155564165,0.3551257,113520.0,113510.0,0.69784048]
[1754155564314,0.3551257,113520.0,113510.0,0.83256048]
[1754155564516,0.3551257,113520.0,113510.0,0.86361048]
[1754155565205,0.3197357,113520.0,113510.0,1.19514205]
[1754155565610,0.3197357,113520.0,113510.0,1.19813205]
[1754155565815,0.3197357,113520.0,113510.0,1.20113205]
[1754155567249,0.3197357,113520.0,113510.0,1.54113205]
[1754155567446,0.3059459,113520.0,113510.0,1.56838298]
[1754155570745,0.3059459,113520.0,113510.0,1.54113205]
[1754155571002,0.3059459,113520.0,113510.0,1.59486398]
[1754155571187,0.3059459,113520.0,113510.0,1.56761305]
[1754155573374,0.3059459,113520.0,113510.0,1.59261305]
[1754155574294,0.3059459,113520.0,113510.0,1.61761305]
[1754155574539,0.3059459,113520.0,113510.0,1.94410462]
[1754155575201,0.3059459,113520.0,113510.0,1.61761305]
[1754155575420,0.3059459,113520.0,113510.0,1.61461305]
[1754155575626,0.3059459,113520.0,113510.0,1.61861305]
[1754155576447,0.3059459,113520.0,113510.0,1.61561305]
[1754155576653,0.3059459,113520.0,113510.0,1.61961305]
[1754155580020,0.3059459,113520.0,113510.0,1.71247305]
[1754155582760,0.26332956,113520.0,113510.0,2.18896462]
[1754155583170,0.26332956,113520.0,113510.0,1.86247305]
[1754155585560,0.26104956,113520.0,113510.0,1.86247305]
[1754155593638,0.26104956,113520.0,113510.0,2.18896462]
[1754155599176,0.26104956,113520.0,113510.0,2.21671397]
[1754155600620,0.0805329,113520.0,113510.0,2.21372397]
[1754155602202,0.0805329,113520.0,113510.0,2.18597462]
[1754155604894,0.0805329,113520.0,113510.0,2.40077462]
[1754155605471,0.0805329,113520.0,113510.0,2.39773462]
[1754155610834,0.0805329,113520.0,113510.0,3.37641685]
[1754155612706,0.06619163,113520.0,113510.0,3.37641685]
[1754155618908,0.06567674,113520.0,113510.0,3.37641685]
[1754155620106,0.06567674,113520.0,113510.0,3.28355685]
[1754155620373,0.10085674,113520.0,113510.0,1.72749987]
[1754155620612,0.10085674,113520.0,113510.0,1.14925887]
[1754155621513,0.10085674,113520.0,113510.0,1.16670789]
[1754155622977,0.10085674,113520.0,113510.0,1.16703835]
[1754155625563,0.10085674,113520.0,113510.0,1.16303835]
[1754155625991,0.10085674,113520.0,113510.0,1.16603835]
[1754155626615,0.10085674,113520.0,113510.0,1.16203835]
[1754155627257,0.10085674,113520.0,113510.0,1.16503835]
[1754155633703,0.37850736,113570.0,113520.0,0.01744902]
[1754155633912,0.00204,113530.0,113520.0,0.34397374]
[1754155634126,0.00204,113530.0,113520.0,0.56281363]
[1754155635229,0.00204,113530.0,113520.0,0.88933835]
[1754155635860,0.03518,113530.0,113520.0,0.88933835]
[1754155636327,0.03518,113530.0,113520.0,0.89133835]
[1754155636539,0.03518,113530.0,113520.0,0.89333835]
[1754155639663,0.03518,113530.0,113520.0,0.92444835]
[1754155641556,0.03197,113530.0,113520.0,0.92444835]
[1754155642189,0.00204,113530.0,113520.0,0.92444835]
[1754155642885,0.00204,113530.0,113520.0,1.25090176]
[1754155644355,0.03518,113530.0,113520.0,0.89329081]
[1754155645304,0.03518,113530.0,113520.0,0.87580179]
[1754155645956,0.36168095,113530.0,113520.0,0.004]
[1754155646182,0.36168095,113530.0,113520.0,0.46510095]
[1754155646183,0.03518,113530.0,113520.0,0.46510095]
[1754155646446,0.03518,113530.0,113520.0,0.7916019]
[1754155646662,0.03518,113530.0,113520.0,0.87580179]
[1754155646871,0.03518,113530.0,113520.0,0.90192179]
[1754155647090,0.03518,113530.0,113520.0,0.87180179]
[1754155647305,0.03518,113530.0,113520.0,0.87280179]
[1754155647565,0.01378787,113540.0,113520.0,1.23475274]
[1754155647773,0.01378787,113540.0,113530.0,0.73720179]
[1754155648015,0.01586787,113540.0,113530.0,0.76732179]
[1754155648223,0.04713787,113540.0,113530.0,0.76732179]
[1754155648432,0.04713787,113540.0,113530.0,0.44082084]
[1754155649338,0.04713787,113540.0,113530.0,0.11431989]
[1754155649550,0.05012787,113540.0,113530.0,0.41070084]
[1754155649756,0.05012787,113540.0,113530.0,0.08419989]
[1754155649973,0.05012787,113540.0,113530.0,0.41070084]
[1754155650184,0.05012787,113540.0,113530.0,0.41170084]
[1754155651887,0.05012787,113540.0,113530.0,0.40926084]
[1754155652845,0.32650095,113560.0,113530.0,0.40926084]
[1754155653076,0.01378859,113550.0,113540.0,0.1346]
[1754155653286,4.485682,113560.0,113540.0,0.1346]
[1754155653492,0.01378826,113560.0,113540.0,0.1346]
[1754155653705,0.01378826,113560.0,113540.0,0.46113761]
[1754155653980,0.01378826,113560.0,113540.0,0.49125761]
[1754155654205,0.01478826,113560.0,113540.0,0.49125761]
[1754155654627,0.01578826,113560.0,113540.0,0.46113761]
[1754155655045,0.00689,113550.0,113540.0,0.46113761]
[1754155655880,0.01478826,113560.0,113540.0,0.46113761]
[1754155656127,0.02167826,113560.0,113540.0,0.49125761]
[1754155656378,0.02267826,113560.0,113540.0,0.49125761]
[1754155656853,0.02167826,113560.0,113540.0,0.49125761]
[1754155657449,0.02167826,113560.0,113540.0,0.49447761]
[1754155657660,0.001,113550.0,113540.0,0.49447761]
[1754155657866,0.01478826,113560.0,113540.0,0.49658761]
[1754155658081,0.01578826,113560.0,113540.0,0.49658761]
[1754155658881,0.02267826,113560.0,113540.0,0.49658761]
[1754155659288,0.01578826,113560.0,113540.0,0.49658761]
[1754155659624,0.01478826,113560.0,113540.0,0.49658761]
[1754155660660,0.01578826,113560.0,113540.0,0.49658761]
[1754155661567,0.01578826,113560.0,113550.0,0.03012]
[1754155661830,0.01578826,113560.0,113550.0,0.029765]
[1754155662520,0.01478826,113560.0,113550.0,0.029765]
[1754155663454,0.01578826,113560.0,113550.0,0.029765]
[1754155665967,0.01578826,113560.0,113550.0,0.032985]
[1754155667650,0.002,113560.0,113550.0,0.77237011]
[1754155668070,0.002,113560.0,113550.0,0.4458325]
[1754155668899,0.001,113560.0,113550.0,0.4458325]
[1754155669305,0.002,113560.0,113550.0,0.4458325]
[1754155671171,0.001,113560.0,113550.0,0.4458325]
[1754155671492,0.002,113560.0,113550.0,0.4458325]
[1754155671922,0.001,113560.0,113550.0,0.4458325]
[1754155673054,0.001,113560.0,113550.0,0.44569962]
[1754155684009,0.001,113560.0,113550.0,0.11929489]
[1754155684228,0.33878473,113570.0,113550.0,0.57818962]
[1754155684504,0.35257138,113570.0,113550.0,0.57818962]
[1754155684725,0.33878473,113570.0,113550.0,0.57818962]
[1754155685378,0.03880791,113570.0,113550.0,0.57818962]
[1754155685587,0.03980791,113570.0,113550.0,0.57818962]
[1754155686467,0.04080791,113570.0,113550.0,0.57818962]
[1754155686899,0.02842791,113570.0,113560.0,0.03721]
[1754155687116,0.02842791,113570.0,113560.0,0.36569473]
[1754155687763,0.02742791,113570.0,113560.0,0.36569473]
[1754155688183,0.02642791,113570.0,113560.0,0.36569473]
[1754155688630,3.985682,113570.0,113560.0,0.36569473]
[1754155688839,0.04027987,113570.0,113560.0,0.36569473]
[1754155689058,0.01378664,113570.0,113560.0,0.36569473]
[1754155690486,0.01478664,113570.0,113560.0,0.36569473]
[1754155692434,0.01478664,113570.0,113560.0,0.03929]
[1754155692650,0.01478664,113570.0,113560.0,0.03721]
[1754155692651,0.34119137,113570.0,113560.0,0.03721]
[1754155692889,0.37711927,113570.0,113560.0,0.03721]
[1754155693123,0.34119137,113570.0,113560.0,0.03721]
[1754155695571,0.41979654,113570.0,113560.0,0.13456]
[1754155695790,0.4561675,113570.0,113560.0,0.13456]
[1754155696352,0.46236947,113570.0,113560.0,0.12956]
[1754155696745,0.46236947,113570.0,113560.0,0.12556]
[1754155697173,0.13596474,113570.0,113560.0,0.12556]
[1754155697381,0.3961443,113570.0,113560.0,0.12556]
[1754155699014,0.3837643,113570.0,113560.0,0.12556]
[1754155702383,0.05735957,113570.0,113560.0,0.12556]
[1754155702583,0.88376427,113570.0,113560.0,0.12556]
[1754155702908,0.38376427,113570.0,113560.0,0.12556]
[1754155703145,0.46796416,113570.0,113560.0,0.12556]
[1754155703358,0.14155943,113570.0,113560.0,0.12556]
[1754155703571,0.46796416,113570.0,113560.0,0.15977]
[1754155703962,0.46796416,113570.0,113560.0,0.15577]
[1754155704618,0.4679643,113570.0,113560.0,0.15577]
[1754155704829,4.4536463,113570.0,113560.0,0.15577]
[1754155707493,4.12724157,113570.0,113560.0,0.15577]
[1754155707655,4.4536463,113570.0,113560.0,0.15577]
[1754155708680,4.12724157,113570.0,113560.0,0.15577]
[1754155708899,4.4536463,113570.0,113560.0,0.15577]
[1754155709097,4.4536463,113570.0,113560.0,0.1587]
[1754155710885,4.4536463,113570.0,113560.0,0.1547]
[1754155712791,4.36944641,113570.0,113560.0,0.1547]
[1754155718096,4.36944641,113570.0,113560.0,0.1507]
[1754155718317,4.36944789,113570.0,113560.0,0.1507]
[1754155719492,4.36944789,113570.0,113560.0,0.1483]
[1754155720362,4.36944789,113570.0,113560.0,0.11116]
[1754155720573,4.38178789,113570.0,113560.0,0.11116]
[1754155720792,0.48030578,113570.0,113560.0,0.11116]
[1754155721015,4.46598778,113570.0,113560.0,0.11116]
[1754155721466,4.45364778,113570.0,113560.0,0.11116]
[1754155721688,3.985682,113560.0,113550.0,0.03677]
[1754155721910,3.985682,113560.0,113550.0,0.17339]
[1754155722356,0.03182801,113560.0,113550.0,0.17339]
[1754155723121,0.35823274,113560.0,113550.0,0.17339]
[1754155723560,0.03182801,113560.0,113550.0,0.17339]
[1754155726251,0.03182801,113560.0,113550.0,0.49979473]
[1754155734325,0.03182801,113560.0,113550.0,0.36527473]
[1754155734536,0.03182801,113560.0,113550.0,0.49979473]
[1754155738690,0.53182801,113560.0,113550.0,0.49979473]
[1754155739143,0.03182801,113560.0,113550.0,0.49979473]
[1754155739799,0.04561543,113560.0,113550.0,0.49979473]
[1754155740243,0.54561543,113560.0,113550.0,0.17339]
[1754155740447,0.04561543,113560.0,113550.0,0.49979473]
[1754155740883,0.01378742,113560.0,113550.0,0.49979473]
[1754155741105,0.01378742,113560.0,113550.0,0.82619946]
[1754155742008,0.01378742,113560.0,113550.0,0.17339]
[1754155742276,0.01378742,113560.0,113550.0,0.49979473]
[1754155743525,0.01378742,113560.0,113550.0,0.17339]
[1754155743741,0.01378742,113560.0,113550.0,0.49979473]
[1754155746271,0.01378742,113560.0,113550.0,0.82619946]
[1754155746710,0.01378742,113560.0,113550.0,0.91039935]
[1754155747154,0.03637096,113570.0,113550.0,0.91039935]
[1754155747375,0.03637096,113570.0,113560.0,0.65280946]
[1754155747576,0.026481,113580.0,113560.0,0.69005946]
[1754155747805,0.03610944,113570.0,113560.0,0.32838473]
[1754155748014,0.0765811,113580.0,113560.0,0.78930946]
[1754155748215,0.08278384,113580.0,113570.0,0.32640473]
[1754155748431,0.08278384,113580.0,113570.0,0.03923]
[1754155748636,0.08278384,113580.0,113570.0,0.36563473]
[1754155748855,0.08278384,113580.0,113570.0,0.03923]
[1754155749090,0.03268374,113580.0,113570.0,0.03923]
[1754155749291,0.03268374,113580.0,113570.0,0.36563473]
[1754155749963,0.04646966,113580.0,113570.0,0.36563473]
[1754155751050,0.04651748,113580.0,113570.0,0.36563473]
[1754155751468,0.08316869,113580.0,113570.0,0.36563473]
[1754155752766,0.05668489,113580.0,113570.0,0.36563473]
[1754155752967,0.05048495,113580.0,113570.0,0.36563473]
[1754155756547,0.05048495,113580.0,113570.0,0.69203946]
[1754155756768,0.03669903,113580.0,113570.0,0.69203946]
[1754155756993,0.03669903,113580.0,113570.0,0.77623935]
[1754155757701,0.03669903,113580.0,113570.0,0.80271435]
[1754155759768,0.05048317,113580.0,113570.0,0.80271435]
[1754155761573,0.01383196,113580.0,113570.0,0.14990489]
[1754155761785,0.01383196,113580.0,113570.0,0.80271435]
[1754155762795,0.04927446,113580.0,113570.0,0.80271435]
[1754155763009,0.01383196,113580.0,113570.0,0.80271435]
[1754155766815,0.04938916,113580.0,113570.0,0.80271435]
[1754155767213,0.04938916,113580.0,113570.0,0.93715435]
[1754155770022,0.03560502,113580.0,113570.0,0.93715435]
[1754155772853,0.04938904,113580.0,113570.0,0.93715435]
[1754155775103,0.01383184,113580.0,113570.0,0.93715435]
[1754155785303,0.01383184,113580.0,113570.0,0.93615435]
[1754155794777,0.01383184,113580.0,113570.0,1.2800081]
[1754155795118,0.01383184,113580.0,113570.0,0.95360337]
[1754155795526,4.782e-05,113580.0,113570.0,0.95360337]
[1754155796373,4.782e-05,113580.0,113570.0,0.95460337]
[1754155797077,4.782e-05,113580.0,113570.0,0.98986632]
[1754155797247,4.782e-05,113580.0,113570.0,0.95460337]
[1754155798205,3.985682,113610.0,113570.0,0.95460337]
[1754155798409,3.985682,113610.0,113600.0,0.32640473]
[1754155798410,3.99236056,113610.0,113600.0,0.32640473]
[1754155798604,0.50667856,113610.0,113600.0,0.46080473]
[1754155799329,0.54306692,113610.0,113600.0,0.46080473]
[1754155799749,0.5568491,113610.0,113600.0,0.46080473]
[1754155800222,0.55064932,113610.0,113600.0,0.49194473]
[1754155800430,0.55064932,113610.0,113600.0,0.46080473]
[1754155800638,0.55684905,113610.0,113600.0,0.46080473]
[1754155800854,0.55684905,113610.0,113600.0,0.1344]
[1754155801061,0.55684905,113610.0,113600.0,0.46080473]
[1754155801678,0.89684905,113610.0,113600.0,0.41580473]
[1754155801891,0.39684905,113610.0,113600.0,0.41580473]
[1754155802575,3.985682,113610.0,113600.0,0.77632946]
[1754155802834,0.01378267,113610.0,113600.0,0.77632946]
[1754155803054,0.526672,113630.0,113600.0,0.77632946]
[1754155803270,3.985682,113620.0,113610.0,0.46076473]
[1754155803484,3.99394709,113620.0,113610.0,0.32640473]
[1754155803716,0.50826509,113620.0,113610.0,0.46076473]
[1754155803926,0.00826509,113620.0,113610.0,0.49190473]
[1754155804145,0.00826509,113620.0,113610.0,0.46076473]
[1754155804770,0.61370577,113630.0,113610.0,0.46076473]
[1754155804980,0.6219683,113630.0,113610.0,0.46076473]
[1754155805190,3.985682,113620.0,113610.0,0.46076473]
[1754155805413,4.06988189,113620.0,113610.0,0.13436]
[1754155805625,0.08419989,113620.0,113610.0,0.46076473]
[1754155806013,0.0979812,113620.0,113610.0,0.46076473]
[1754155806460,0.1341405,113620.0,113610.0,0.13436]
[1754155807526,0.12035919,113620.0,113610.0,0.13436]
[1754155808679,0.12035919,113620.0,113610.0,0.09935999]
[1754155808867,0.0361593,113620.0,113610.0,0.09935999]
[1754155809065,0.0361593,113620.0,113600.0,0.49488473]
[1754155809300,3.985682,113620.0,113600.0,0.49488473]
[1754155810211,0.0504497,113620.0,113600.0,0.49488473]
[1754155810426,0.11686525,113620.0,113600.0,0.49488473]
[1754155810888,0.11686525,113620.0,113600.0,0.46374473]
[1754155811097,0.11686525,113620.0,113610.0,0.03114]
[1754155811307,0.0504497,113620.0,113610.0,0.03114]
[1754155813686,0.3904497,113620.0,113610.0,0.03114]
[1754155814635,0.37666824,113620.0,113610.0,0.03114]
[1754155815577,0.37666824,113620.0,113610.0,0.03412]
[1754155815798,0.37666824,113620.0,113610.0,0.00912]
[1754155816696,0.37666824,113620.0,113610.0,0.01125]
[1754155817618,0.37666824,113620.0,113610.0,0.00912]
[1754155818066,0.39044955,113620.0,113610.0,0.00912]
[1754155822109,0.72304933,113620.0,113610.0,0.00912]
[1754155822323,0.73130928,113620.0,113610.0,0.00912]
[1754155822540,0.73131031,113620.0,113610.0,0.00912]
[1754155822749,0.40490558,113620.0,113610.0,0.00912]
[1754155822973,0.73335031,113620.0,113600.0,0.44684473]
[1754155823263,0.73335026,113620.0,113600.0,0.44684473]
[1754155823491,0.73335118,113620.0,113600.0,0.44684473]
[1754155823717,0.76311118,113620.0,113600.0,0.44684473]
[1754155824639,0.75484933,113620.0,113600.0,0.44684473]
[1754155824857,0.76311273,113620.0,113600.0,0.48222473]
[1754155825358,0.436708,113620.0,113600.0,0.48222473]
[1754155825555,0.76311273,113620.0,113600.0,0.15582]
[1754155825877,0.436708,113620.0,113600.0,0.48222473]
[1754155826106,0.84731262,113620.0,113600.0,0.48222473]
[1754155827533,0.84731262,113620.0,113600.0,0.44993473]
[1754155827745,0.84731262,113620.0,113600.0,0.48222473]
[1754155828465,0.84731262,113620.0,113600.0,0.15582]
[1754155828716,0.84731262,113620.0,113600.0,0.48222473]
[1754155829902,0.81755262,113620.0,113600.0,0.44993473]
[1754155830101,0.81755262,113620.0,113610.0,0.03229]
[1754155830327,0.73335273,113620.0,113610.0,0.03229]
[1754155831030,0.76715273,113620.0,113600.0,0.43722473]
[1754155831737,0.440748,113620.0,113600.0,0.11082]
[1754155831979,0.440748,113620.0,113600.0,0.43722473]
[1754155832701,0.76715273,113620.0,113600.0,0.43722473]
[1754155833174,0.90143273,113620.0,113600.0,0.46951473]
[1754155834294,0.98563262,113620.0,113600.0,0.46951473]
[1754155835594,0.85135262,113620.0,113600.0,0.46951473]